Cogmind - Beta 15 @@@ ROGUE MODE // 2025.05.31 @ 16:37:46 Player: Elias Result: Destroyed by G-34 Mercenary with Small Laser Performance ------------- Evolutions (0) 0 Regions Visited (1) 200 Robots Destroyed (18) 90 Value Destroyed (342) 342 Prototype IDs (0) 0 Alien Tech Used (0) 0 Bonus (0) 0 TOTAL SCORE: 632 Bonus ------- None Cogmind --------- Core Integrity 0/250 Matter 288/300 Energy 250/250 System Corruption 0% Temperature Cool (12) Movement Walking (120) Location -10/Materials Parts ------- > --- POWER (1) -------- Ion Engine > --- PROPULSION (2) --- Aluminum Leg Aluminum Leg > --- UTILITY (2) ------ Small Storage Unit Signal Interpreter > --- WEAPON (2) ------- Small Laser Assault Rifle > --- INVENTORY (8) ---- Light Treads Light Treads Aluminum Leg Aluminum Leg Improved Heat Sink Light Armor Plating Assault Rifle Datajack Peak State ------------ > --- POWER ------------ Ion Engine > --- PROPULSION ------- Aluminum Leg Aluminum Leg > --- UTILITY ---------- Small Storage Unit Signal Interpreter > --- WEAPON ----------- Small Laser Assault Rifle > --- INVENTORY -------- Ion Engine Light Treads Light Treads Aluminum Leg Improved Heat Sink Light Armor Plating Assault Rifle Datajack [Rating: 8] Favorites ----------- Power Ion Engine Engine Ion Engine Propulsion Aluminum Leg Treads Light Treads Leg Aluminum Leg Wheel Wheel Utility Small Storage Unit Device Seismic Detector Storage Small Storage Unit Processor Signal Interpreter Weapon Assault Rifle Energy Gun EM Pulse Gun Energy Cannon Beam Cannon Ballistic Gun Assault Rifle Build | -11 -10 ------- Run | Yrd Mat Slots Evolved . | . . Power . | . . Propulsion . | . . Utility . | . . Weapon . | . . Parts Attached 16 | 9 7 Power 2 | 1 1 Engine 2 | 1 1 Core . | . . Reactor . | . . Propulsion 6 | 4 2 Treads 1 | 1 . Leg 4 | 2 2 Wheel 1 | 1 . Hover . | . . Flight . | . . Utility 3 | 2 1 Device 1 | 1 . Storage 1 | 1 . Processor 1 | . 1 Hackware . | . . Protection . | . . Artifact . | . . Weapon 5 | 2 3 Energy Gun 2 | 1 1 Energy Cannon 1 | . 1 Ballistic Gun 2 | 1 1 Ballistic Cannon . | . . Launcher . | . . Special Weapon . | . . Impact Weapon . | . . Slashing Weapon . | . . Piercing Weapon . | . . Special Melee Weapon . | . . Unidentified Prototypes . | . . Parts Lost 5 | . 5 Power . | . . Propulsion 2 | . 2 Utility . | . . Weapon 3 | . 3 Highest Loss Streak 3 | . 3 To Critical Strikes . | . . Average Backups 5 | 3 6 Power . | . . Propulsion 2 | 1 2 Utility . | . 1 Weapon . | . 1 Tool/Special . | . . Unused Backups 7 | . 7 Power . | . . Propulsion 3 | . 3 Utility 2 | . 2 Weapon 1 | . 1 Tool/Special 1 | . 1 Average Slot Usage (%) 96 | . 96 Engine 14 | . 14 Leg 26 | . 26 Device 7 | . 7 Storage 14 | . 14 Processor 7 | . 7 Energy Gun 11 | . 11 Energy Cannon 3 | . 3 Ballistic Gun 11 | . 11 Peak Build Rating 8 | 7 8 Average Rating 6 | 5 7 On Entrance 3 | . 7 Naked Turns . | . . Heaviest Build 16 | 15 16 Greatest Support 20 | 20 20 Greatest Overweight (x) 1 | 1 1 Average Overweight (x) . | . . Largest Inventory Capacity 8 | 8 8 Average Capacity 7 | 7 8 Most Carried 8 | 5 8 Average Carried 5 | 3 6 Final Capacity 8 | 8 8 Final Carried 8 | 4 8 Class Distribution -------------------- 100% | Mutant Dominant Class ---------------- Mutant | -10/Materials Resources | -11 -10 ----------- Run | Yrd Mat Matter Collected 614 | 245 369 Remotely . | . . Salvage Created 633 | 88 545 Parts 38 | 8 30 Haulers Intercepted . | . . Recyclers Shooed 4 | 1 3 Parts Field Recycled . | . . Retrieved Matter . | . . Parts Self-Destructed . | . . Prevented . | . . Kills | -11 -10 ------- Run | Yrd Mat Combat Hostiles Destroyed 7 | . 7 Guns 6 | . 6 Cannons 1 | . 1 Classes Destroyed 6 | 2 4 Worker 4 | 2 2 Tunneler 2 | 2 . Recycler 2 | . 2 Operator 2 | . 2 Watcher 1 | . 1 Grunt 7 | . 7 Best Kill Streak 3 | 2 3 Combat Bots Only 3 | . 3 Max Kills in Single Turn 1 | 1 1 Gunslinging . | . . Exploded . | . . Melee . | . . Uniques/NPCs Destroyed . | . . Combat | -11 -10 -------- Run | Yrd Mat Hostile Shots Fired 72 | . 72 Missed 5 | . 5 Hits 67 | . 67 Projectile 67 | . 67 Critical Strikes 1 | . 1 Damage Taken 884 | . 884 Core 250 | . 250 Absorbed by Shields . | . . Core Remaining (%) 100 | 100 . Volleys Fired 63 | 7 56 Largest 2 | 2 2 Hottest 100 | 60 100 Shots Fired 106 | 14 92 Gun 89 | 14 75 Cannon 17 | . 17 Launcher . | . . Special . | . . Kinetic 61 | 7 54 Thermal 36 | . 36 Explosive . | . . Electromagnetic 9 | 7 2 Robot Hit Streak 12 | 2 12 Robot Miss Streak 4 | 4 3 Penetration Max . | . . Secondary Targets 1 | . 1 Max Gunslinging Chain 1 | . 1 Shots Hit Robots 64 | 5 59 Core Hits 31 | 4 27 Critical Kills . | . . Critical Parts Destroyed . | . . Critical Strikes . | . . Melee Attacks . | . . Impact . | . . Slashing . | . . Piercing . | . . Sneak Attacks . | . . Combat Hostiles . | . . Follow-up Attacks . | . . Damage Inflicted 849 | 77 772 Guns 744 | 77 667 Cannons 105 | . 105 Explosions . | . . Melee . | . . Ramming . | . . Kinetic 494 | 13 481 Thermal 261 | . 261 Explosive . | . . Electromagnetic 94 | 64 30 Impact . | . . Slashing . | . . Piercing . | . . Highest Corruption . | . . Average Corruption . | . . Corruption Purged . | . . Corruption Blocked . | . . Overload Shots . | . . Overflow Damage . | . . Projectiles . | . . Explosions . | . . Melee . | . . Knockbacks . | . . Impact . | . . Kinetic . | . . Secondary . | . . Self-Inflicted Damage . | . . Shots . | . . Rammed . | . . Targets Rammed . | . . Kicked . | . . Crushed . | . . Highest Temperature 408 | . 408 Average Temperature 177 | . 177 Received Heat Transfer 510 | . 510 Effects 7 | . 7 Shutdowns 2 | . 2 Energy Bleed 1 | . 1 Interference 1 | . 1 Matter Decay 2 | . 2 Short Circuit 1 | . 1 Siege Activations . | . . Martial Activations . | . . Shielding Activations . | . . Robots Disrupted . | . . Combat Hostiles . | . . Robots Corrupted . | . . Combat Hostiles . | . . Parts Fried . | . . Impact Corruptions . | . . Robots Melted . | . . Combat Hostiles . | . . Parts Melted . | . . Heat Transferred 572 | . 572 Parts Sabotaged . | . . Parts Stolen . | . . Parts Stripped . | . . Power Chain Reactions . | . . Alert | -11 -10 ------- Run | Yrd Mat Maximum Alert Level . | . . Low Security (%) 100 | 100 100 Level 1 . | . . Level 2 . | . . Level 3 . | . . Level 4 . | . . Level 5 . | . . High Security . | . . Max Security . | . . Peak Influence 101 | 10 101 Initial 6 | . 6 Average 39 | . 47 Influence Increases 268 | 20 248 Destroy 0b10 Robot/C 140 | . 140 Destroy 0b10 Robot/NC 55 | 20 35 Destroy Leader 42 | . 42 Destroy Structure 1 | . 1 Lose Combat Pursuer 30 | . 30 Influence Decreases 231 | 10 221 Entered New Map 4 | . 4 Time Decay 187 | 10 177 Lost Part 40 | . 40 Squads Dispatched 2 | . 2 Investigation . | . . Extermination . | . . Reinforcement 2 | . 2 Assault . | . . Garrison . | . . Intercept . | . . Searches Triggered . | . . Construction Impeded . | . . Haulers Reinforced . | . . Active Scanning Responses . | . . Cargo Convoy Interrupts . | . . Stealth | -11 -10 --------- Run | Yrd Mat Distress Signals 1 | . 1 Communications Jammed . | . . Distress Signals . | . . Times Spotted 17 | . 17 Peak Tracking Total 6 | . 6 Tactical Retreats 2 | . 2 Traps | -11 -10 ------- Run | Yrd Mat Traps Triggered . | . . Indirectly . | . . Trap Hack Attempts . | . . Triggered . | . . Disarmed . | . . Reprogrammed . | . . Reused . | . . Traps Extracted . | . . Installed . | . . Triggered . | . . Machines | -11 -10 ---------- Run | Yrd Mat Machines Disabled . | . . Max in Single Turn . | . . Machines Repaired . | . . Machines Dismantled . | . . Machines Sabotaged . | . . Overloaded Fab Kills . | . . Hacking | -11 -10 --------- Run | Yrd Mat Machines Accessed 1 | . 1 Terminals . | . . Fabricators . | . . Repair Stations . | . . Recycling Units 1 | . 1 Scanalyzers . | . . Garrison Access . | . . Total Hacks 3 | . 3 Successful 1 | . 1 Failed 2 | . 2 Catastrophic . | . . Database Lockouts . | . . Manual . | . . Terminals . | . . Fabricators . | . . Repair Stations . | . . Recycling Units 3 | . 3 Scanalyzers . | . . Garrison Access . | . . Terminal Hacks . | . . Fabricator Hacks . | . . Repair Station Hacks . | . . Recycling Unit Hacks 1 | . 1 Retrieve Components 1 | . 1 Scanalyzer . | . . Garrison Access Hacks . | . . Unauthorized Hacks . | . . Terminals . | . . Fabricators . | . . Repair Stations . | . . Recycling Units . | . . Scanalyzers . | . . Garrison Access . | . . Data Cores Recovered . | . . Used . | . . Hacking Detections 1 | . 1 Full Trace Events . | . . Feedback Events . | . . Feedback Blocked . | . . Robot Schematics Acquired . | . . Robots Built . | . . Authchips . | . . Time . | . . Total Robot Build Rating . | . . Part Schematics Acquired . | . . Parts Built . | . . Authchips . | . . Time . | . . Total Part Build Rating . | . . Parts Repaired . | . . Time . | . . Parts Recycled . | . . Recycled Matter . | . . Retrieved Matter . | . . Retrieved Components 9 | . 9 Parts Scanalyzed . | . . Part Schematics Acquired . | . . Parts Damaged . | . . Bothacking | -11 -10 ------------ Run | Yrd Mat Used RIF Installer . | . . Robots Hacked . | . . Non-combat . | . . Combat . | . . Robot Hacks Applied . | . . Relay Couplers Released . | . . Fabnet Peak Effective % . | . . Robots Rewired . | . . Allies Hacked . | . . Hacks Repelled . | . . Allies | -11 -10 -------- Run | Yrd Mat Total Allies . | . . Largest Group . | . . Highest-Rated Group . | . . Highest-Rated Ally . | . . Total Orders . | . . Ally Attacks . | . . Total Damage . | . . Kills . | . . Allies Corrupted . | . . Allies Melted . | . . Intel | -11 -10 ------- Run | Yrd Mat Active Infowar (turns) 225 | 24 201 Seismic 225 | 24 201 Robot Analysis Total . | . . Derelict Logs Recovered . | . . Drone Launches . | . . Drone Recoveries . | . . Exploration | -11 -10 ------------- Run | Yrd Mat Turns Passed 646 | 113 533 Spaces Moved 347 | 57 290 Core 8 | 8 . Treads . | . . Legs 339 | 49 290 Wheels . | . . Hover . | . . Flight . | . . Fastest Speed 50 | 50 120 Average Speed 121 | 123 121 Slowest Speed 190 | 190 190 Overloaded Moves . | . . Propulsion Burnouts . | . . Robots Hopped . | . . Potential Cave-ins . | . . Cave-ins Triggered . | . . Exploration Rate (%) 23 | 5 42 Regions Visited 1 Branch Regions . Pre-discovered Areas . | . . Known Exits Taken . | . . Unknown Exits Taken 1 | 1 . Scrap Searched . | . . Spaces Dug . | . . Terrain Destroyed . | . . Melee . | . . Projectile . | . . AOE . | . . Terrain Rammed . | . . Walls Destroyed . | . . Machines Disabled . | . . Actions | -11 -10 --------- Run | Yrd Mat Total 464 | 85 379 Wait 12 | . 12 Move 346 | 56 290 Hop . | . . Pick Up 22 | 12 10 Fast Attach 1 | . 1 Attach 12 | 8 4 Detach . | . . Swap 5 | 1 4 Drop 3 | 1 2 Fire 63 | 7 56 Melee . | . . Ram . | . . Kick . | . . Crush . | . . Escape Stasis . | . . Rewire . | . . Trap . | . . Miscellaneous . | . . Route ------- -11/Scrapyard -10/Materials (discovered 2 exits: *Mat / [*Sub]) History --------- Turn | Location | Event 28 | -11/Scrapyard | Discovered new exit (range 16) 114 | -11/Scrapyard | Entered Materials 301 | -10/Materials | Build established: Mutant 309 | -10/Materials | Core integrity fell below 50% 334 | -10/Materials | Core integrity fell below 20% 368 | -10/Materials | Lost 3 parts (1n2w) 541 | -10/Materials | Discovered new exit (range 10) 629 | -10/Materials | Discovered new exit (range 3) 635 | -10/Materials | Identified exit to Materials 647 | -10/Materials | Destroyed by G-34 Mercenary with Small Laser Last Messages --------------- Retrieving 9 components... Aluminum Leg Ion Engine Wheel Aluminum Leg Tractor Beam Heat Sink Lgt. Ion Engine Heat Sink Sml. Laser 00541_ EXIT=FOUND 00550_ R-06 Scavenger inserts Hover Unit into recycling unit. 00553_ R-06 Scavenger inserts Visual Processing Unit into recycling unit. 00560_ R-06 Scavenger collects Datajack. 00565_ R-06 Scavenger destroyed. 00571_ Acquired 6 matter. 00575_ Dropped Ion Engine. 00578_ Acquired Aluminum Leg. 00629_ EXIT=FOUND 00635_ EXIT=IDENTIFIED: MATERIALS Map ----- +----------------------------------------------------+ | | | | | | | | | | | | | | | ?????????????????????????????????#############???? | | ?????????????????????????????????# """ """ #???? | | ?????????????????????????????????# """ """ #???? | | ?????????????????????????????????# """ """ #???? | | ?????????????????????????????????# ##### | | ?????????????????????????????????# ## | | ?????????????????????????????????# ## ## | | ?????????????????????????????????#! ## #= | | ?????????????????????????????????######+####### #= | | ???????????????????????############### #??# # | | ???????????????????????# # + #??# # | | ???????????????????????# < # """ ### #??# # | | ???????????????????????# # """ #?# #??# # | | ???????????????????????# + """ #?# #?## ## | | ???????????????????????# # #?# ### | | ???????????????????????# # #?# | | ???????????????????????# ########?# | | ???????????????????????# #????????# ##### | | ???????????????????????# @ #????????######???## # | | ???????????????????????# ???????????????# # | | ???????????????????????#g ############### + | | ???????????????????????g u =%! # | | ?????????????????????? ########## # | | ?????????????????????t a ########## ###### | | ?????????????????????##### # # # #????? | | ?????????????????????????? # # + #????? | | ?????????????????????????? # # # #????? | | ?????????????????????????? # # / #????# | | ?????????????????????????? #? #########/####### | | ?????????????????????????? #? ##??#[[! # | | ??????????????????????????##? #???#[! """ # | | ??????????????????????????????? #???#[! "T" # | | ????????????????????????????????????# # | | ????????????????????????????????????# # | | ??????????????????????????????????##########+##### | | ??????????????????????????????????# # #???# | | ??????????????????????????????????# """"" # #???# | | ??????????????????????????????????# """"" # ##### | | ??????????????????????????????????# """"" # % | | ??????????????????????????????????# """"" + [ | | ??????????????????????????????????# """"" # !% | | ??????????????????????????????????# """"" ####+## | | ??????????????????????????????????#= """"" ## | +----------------------------------------------------+ Best States ------------- Heat Dissipation 25 Energy Generation 10 Energy Capacity 250 Matter Stores 300 Matter Capacity 300 Sight Range 16 Terrain Scan Density 10 Evasion (%) 55 Item Schematics ----------------- None Robot Schematics ------------------ None Fabricated ------------ Nothing Repaired ---------- Nothing Alien Tech Used ----------------- None Achievements -------------- None Challenges ------------ None Game ------ Seed TacticalTerrorWell Manual? 0 Play Time 00:06:21 Cumulative 36.0 hours Start 2025.05.31 @ 16:32:32 End 2025.05.31 @ 16:37:46 Sessions 1 Manual Loads 0 Difficulty Rogue Special Mode None Game No. 57 Rogue 57 Adventurer 0 Explorer 0 Win Type - Total 0 Types 0/0/0/0/0/0/0/0/0/0 Lore% 32 Gallery% 34 Achievement% 29 Wizard Run 0 Options --------- Layout 0 ASCII 0 Keyboard 0 Movement Mouse Keybinds 0 Fullscreen 1 Font 18/SmallcapsGlow Map View 76x50 Zoom Use 0% Tactical HUD 1 Map Filters NONE Filters NONE Steam 1 RUN: 4d1a30fc-ebfc-4a50-a2a4-227adac1ebc5